fUST/lending_fUST_20250725
["ID","MTS","AMOUNT","RATE_DAILY","PERIOD"]
[374643332,1753395068521,-616.11,0.00020893,2]
[374643333,1753395068530,-460.0,0.00020893,2]
[374643334,1753395068540,-460.0,0.00020893,2]
[374643335,1753395068550,-530.46,0.00020894,2]
[374643336,1753395068559,-928.22,0.00020894,2]
[374643337,1753395068569,-3249.43,0.00020894,2]
[374643338,1753395068578,-2256.58,0.00020894,2]
[374643339,1753395068588,-460.0,0.00020894,2]
[374643340,1753395068598,-1014.63,0.00020894,2]
[374643341,1753395068607,-4244.06947772,0.00020969,4]
[374643342,1753395068617,-741.14122082,0.00021,2]
[374643343,1753395068626,-13368.00807131,0.00021,3]
[374643344,1753395068880,-4179.70950917,0.00021,3]
[374643345,1753395068890,-151.0,0.00021,2]
[374643346,1753395068901,-151.0,0.00021,2]
[374643347,1753395068911,-232.673817,0.00021,2]
[374643348,1753395068921,-185.714592,0.00021,2]
[374643349,1753395068931,-151.0,0.00021068,2]
[374643350,1753395068940,-1500.0,0.00021068,2]
[374643351,1753395068951,-618.54253975,0.00021068,2]
[374643352,1753395068960,-1000.0,0.00021068,2]
[374643353,1753395068970,-1500.0,0.00021068,2]
[374643354,1753395068979,-1107.61185428,0.00021074,2]
[374643355,1753395069382,-176.51416251,0.00018865,2]
[374643356,1753395069392,-460.0,0.00018967,2]
[374643357,1753395069403,-233.72229668,0.00018967,2]
[374643358,1753395069413,-151.0,0.00019314,2]
[374643359,1753395069423,-151.0,0.00019452,2]
[374643360,1753395069432,-460.0,0.00020885,2]
[374643361,1753395069442,-1736.23687449,0.00021074,2]
[374643362,1753395069452,-152.025872,0.00021084,2]
[374643363,1753395069461,-152.025872,0.00021084,2]
[374643364,1753395069471,-234.623149,0.00021084,2]
[374643365,1753395069481,-234.623149,0.00021084,2]
[374643366,1753395069490,-305.727536,0.00021084,2]
[374643367,1753395069500,-305.727536,0.00021084,2]
[374643368,1753395069510,-220.377827,0.00021095,2]
[374643369,1753395069523,-220.377827,0.00021095,2]
[374643370,1753395069533,-151.0,0.00021095,2]
[374643371,1753395069543,-460.0,0.00021095,2]
[374643372,1753395069552,-460.0,0.00021095,2]
[374643373,1753395069561,-573.8,0.00021095,2]
[374643374,1753395069570,-460.0,0.00021095,2]
[374643375,1753395069579,-151.0,0.00021095,2]
[374643376,1753395069589,-534.29,0.00021095,2]
[374643377,1753395069598,-507.05,0.00021095,2]
[374643378,1753395069608,-460.0,0.00021095,2]
[374643379,1753395069618,-460.0,0.00021095,2]
[374643380,1753395069627,-460.0,0.00021095,2]
[374643381,1753395069637,-228.289581,0.00021095,2]
[374643382,1753395069646,-460.0,0.00021095,2]
[374643383,1753395069656,-228.289581,0.00021095,2]
[374643384,1753395069665,-154.132298,0.00021095,2]
[374643385,1753395069674,-154.132298,0.00021095,2]
[374643386,1753395069684,-517.32,0.00021095,2]
[374643387,1753395069694,-111.03749348,0.00021095,2]
[374643388,1753395069707,-348.96250652,0.00021095,2]
[374643389,1753395069717,-804.85875083,0.00021095,2]
[374643390,1753395070327,-460.0,0.00018972,2]
[374643391,1753395070337,-40.0,0.00018975,2]
[374643399,1753395549061,3966.10148022,0.00017967,2]
[374643400,1753395549086,20933.89851978,0.00017967,2]
[374643401,1753395556149,5000.0,0.000185,2]
[374643402,1753395556856,-176.51416252,0.00018758,2]
[374643403,1753395556878,-147.31072989,0.00018766,2]
[374643404,1753395559104,-31.08218961,0.00018766,2]
[374643406,1753395559130,-159.85245639,0.00018766,2]
[374643407,1753395559153,-20.13023656,0.000188,2]
[374643408,1753395562021,-311.33516509,0.000188,2]
[374643409,1753395566326,-194.35291794,0.000188,2]
[374643410,1753395571517,-123.14264423,0.000188,2]
[374643411,1753395571543,-110.10920444,0.00018858,3]
[374643412,1753395571826,4066.10148022,0.000185,2]
[374643413,1753395571850,933.89851978,0.000185,2]
[374643414,1753395574888,-215.04589078,0.00018858,3]
[374643415,1753395576858,-201.89033199,0.00018858,3]
[374643416,1753395579028,-255.29413306,0.00018858,3]
[374643417,1753395582752,-108.30043973,0.00018858,3]
[374643418,1753395582778,-70.04426822,0.00018858,3]
[374643419,1753395584393,-253.07573178,0.00018858,3]
[374643420,1753395584417,-62.89011732,0.00018858,3]
[374643421,1753395587947,5000.0,0.000185,2]
[374643422,1753395592661,-109.80988268,0.00018858,3]
[374643423,1753395592684,-64.19011732,0.00018858,3]
[374643424,1753395596274,-206.68027152,0.00018858,3]
[374643425,1753395599005,-186.04224788,0.00018858,3]
[374643427,1753395604582,-61.18736328,0.00018858,3]
[374643428,1753395604608,-90.76439634,0.00018863,2]
[374643429,1753395611165,-151.0,0.00018857,2]
[374643430,1753395611188,-117.81849115,0.00018857,2]
[374643431,1753395617155,-33.18150885,0.00018857,2]
[374643432,1753395617183,-151.0,0.00018857,2]
[374643433,1753395617211,-147.37849374,0.00018857,2]
[374643434,1753395619396,-67.69530626,0.00018857,2]
[374643435,1753395619421,-135.1559336,0.00018857,2]
[374643436,1753395623379,-15.8440664,0.00018857,2]
[374643437,1753395623403,-146.57576943,0.00018857,2]
[374643438,1753395625718,-4.42423057,0.00018857,2]
[374643439,1753395625743,-151.0,0.00018857,2]
[374643440,1753395625766,-41.79146715,0.00018857,2]
[374643441,1753395627354,-109.20853285,0.00018857,2]
[374643442,1753395627379,-45.67677459,0.00018857,2]
[374643443,1753395630175,-105.32322541,0.00018857,2]
[374643444,1753395630200,-151.0,0.00018857,2]
[374643445,1753395630225,-151.0,0.00018857,2]
[374643446,1753395630250,-31.81339802,0.00018857,2]
[374643447,1753395635604,-201.6531018,0.00018856,2]
[374643448,1753395638171,-241.67234233,0.00018856,2]
[374643449,1753395640423,-151.03750871,0.00018856,2]
[374643450,1753395640447,-8.05958779,0.00018856,2]
[374643451,1753395642258,-153.42509559,0.00018856,2]
[374643452,1753395645780,-238.40819577,0.00018856,2]
[374643453,1753395649833,-100.10712085,0.00018856,2]
[374643454,1753395649857,-72.95939351,0.00018856,2]
[374643455,1753395651452,-215.10205148,0.00018856,2]
[374643457,1753395654201,-180.84289319,0.00018856,2]
[374643458,1753395656279,-31.09566182,0.00018856,2]
[374643459,1753395656305,-129.57612627,0.00018856,2]
[374643460,1753395664099,-176.2337353,0.00018855,2]
[374643461,1753395667527,-123.7662647,0.00018855,2]
[374643462,1753395667553,-51.41078454,0.00018856,2]
[374643463,1753395669932,276.730816,0.00013699,2]
[374643464,1753395670695,-141.94787682,0.00018856,2]
[374643465,1753395670720,-93.58774965,0.00018856,2]
[374643466,1753395673411,-169.82032572,0.00018856,2]
[374643467,1753395676209,-53.28356719,0.00018856,2]
[374643468,1753395676233,-141.36048062,0.00018856,2]
[374643470,1753395679583,-162.47786734,0.00018856,2]
[374643471,1753395682396,-160.05037009,0.00018856,2]
[374643472,1753395685771,-216.75490508,0.00018855,2]
[374643473,1753395688539,-258.02257646,0.00018855,2]
[374643474,1753395690165,-253.45409962,0.00018855,2]
[374643475,1753395695205,-342.33913775,0.00018855,2]
[374643476,1753395696865,-129.42928109,0.00018855,2]
[374643477,1753395696890,-28.23158116,0.00018856,2]
[374643478,1753395698619,-7.87970079,0.00018856,2]
[374643479,1753395698644,-232.89481638,0.00018856,2]
[374643480,1753395703721,-267.10518362,0.00018856,2]
[374643481,1753395703745,-93.10535246,0.00018856,2]
[374643482,1753395709593,-188.94611834,0.00018757,2]
[374643483,1753395709617,-58.94536132,0.00018856,2]
[374643484,1753395711194,187.36251733,0.000222,69]
[374643485,1753395711223,-244.27372204,0.00018856,2]
[374643486,1753395714100,-279.44208927,0.00018856,2]
[374643487,1753395718576,-241.00005075,0.00018856,2]
[374643488,1753395720223,-178.0,0.00018856,2]
[374643489,1753395722366,-213.68929825,0.00018855,2]
[374643492,1753395726648,-86.31070175,0.00018855,2]
[374643493,1753395726671,-116.86090682,0.00018856,2]
[374643494,1753395728488,-176.03473461,0.00018856,2]
[374643495,1753395728890,152.8253593,7.2e-07,2]
[374643496,1753395728984,152.8253593,7.2e-07,2]
[374643497,1753395729075,152.8253593,7.2e-07,2]
[374643498,1753395729190,152.8253593,7.2e-07,2]
[374643499,1753395729272,152.8253593,7.2e-07,2]
[374643500,1753395729370,152.8253593,7.2e-07,2]
[374643501,1753395729491,152.8253593,7.2e-07,2]
[374643502,1753395729598,152.8253593,7.2e-07,2]
[374643503,1753395733536,-162.61818002,0.00018856,2]
[374643504,1753395736233,-282.13344993,0.00018856,2]
[374643505,1753395738546,-259.83634292,0.000188,2]
[374643506,1753395744246,-207.32875733,0.000188,2]
[374643507,1753395755442,-52.00367079,0.000188,2]
[374643508,1753395755464,-222.97186587,0.00018855,2]
[374643509,1753395758598,-115.54073608,0.00018855,2]
[374643510,1753395758623,-42.46954457,0.00018855,2]
[374643511,1753395761471,-290.34280605,0.00018855,2]
[374643512,1753395764350,-161.04010148,0.00018855,2]
[374643513,1753395765940,-6.1475479,0.00018855,2]
[374643514,1753395765962,-454.33549526,0.00018855,2]
[374643515,1753395768194,-45.66450474,0.00018855,2]
[374643516,1753395768218,-183.47667746,0.00018855,2]
[374643517,1753395768243,-79.42997342,0.00018855,2]
[374643518,1753395776929,-192.34568573,0.00018855,2]
[374643519,1753395779744,-228.22434085,0.00018855,2]
[374643520,1753395779772,-148.5293485,0.00018855,2]
[374643521,1753395785149,-341.93393684,0.000188,2]
[374643522,1753395789934,-298.6865238,0.000188,2]
[374643523,1753395794803,-191.39403109,0.000188,2]
[374643524,1753395794826,-87.3154783,0.00018854,2]
[374643525,1753395801075,-212.6845217,0.00018854,2]
[374643526,1753395801100,-65.15994975,0.00018855,2]
[374643527,1753395801125,-23.00808651,0.00018855,2]
[374643528,1753395804028,-292.57279506,0.00018855,2]
[374643529,1753395806940,-184.41911843,0.00018855,2]
[374643530,1753395806963,-37.62900328,0.00018855,2]
[374643531,1753395809787,-208.24629089,0.00018855,2]
[374643532,1753395818184,-254.12470583,0.00018855,2]
[374643533,1753395818211,-88.06600698,0.00018855,2]
[374643534,1753395820858,-283.90796671,0.00018855,2]
[374643535,1753395825067,-128.02602631,0.00018855,2]
[374643536,1753395825091,-26.07658245,0.00018855,2]
[374643537,1753395827355,-287.18619856,0.00018855,2]
[374643538,1753395828981,-186.73721899,0.00018855,2]
[374643539,1753395829007,-131.80970464,0.00018855,2]
[374643540,1753395831571,-166.51739884,0.00018855,2]
[374643542,1753395836844,-158.36025649,0.00018855,2]
[374643543,1753395839071,-43.31264003,0.00018855,2]
[374643544,1753395839094,-163.23326035,0.00018855,2]
[374643545,1753395841328,-160.17750166,0.00018855,2]
[374643546,1753395841353,-52.54938668,0.00018855,2]
[374643547,1753395873477,-383.00705925,0.00018855,2]
[374643548,1753395890177,-64.44355407,0.00018855,2]
[374643549,1753395890202,-103.50246453,0.00018855,2]
[374643550,1753395894269,-326.77495798,0.00018855,2]
[374643551,1753395896000,-69.72257749,0.00018855,2]
[374643552,1753395896024,-209.12318463,0.00018855,2]
[374643553,1753395900681,-165.71210128,0.00018855,2]
[374643554,1753395905062,-152.17119309,0.00018757,2]
[374643555,1753395906665,-13.15666044,0.00018757,2]
[374643556,1753395906689,-300.0,0.00018854,2]
[374643557,1753395906712,-300.0,0.00018854,2]
[374643558,1753395906735,-300.0,0.00018854,2]
[374643559,1753395906757,-300.0,0.00018854,2]
[374643560,1753395906780,-300.0,0.00018854,2]
[374643561,1753395906804,-586.25780135,0.00018854,2]
[374643564,1753395909829,-460.0,0.00018854,2]
[374643565,1753395912570,-153.74219865,0.00018854,2]
[374643566,1753395912594,-306.25780135,0.00018855,2]
[374643567,1753395915060,-798.4,0.00018855,2]
[374643573,1753396030149,152.82535929,7.2e-07,2]
[374643574,1753396030407,-178.16929021,0.00018755,2]
[374643575,1753396030429,-300.0,0.00018853,2]
[374643576,1753396030450,-330.33968919,0.00018854,2]
[374643577,1753396031741,-2.99532661,0.00018854,2]
[374643578,1753396031763,-510.83655635,0.00018854,2]
[374643579,1753396031788,-190.6977773,0.00018854,2]
[374643580,1753396037102,-554.67632782,0.000188,2]
[374643581,1753396037125,-309.3022227,0.00018854,2]
[374643582,1753396037148,-500.0,0.00018854,2]
[374643583,1753396037171,-500.0,0.00018854,2]
[374643584,1753396037194,-500.0,0.00018854,2]
[374643585,1753396037217,-500.0,0.00018854,2]
[374643586,1753396037244,-171.97744464,0.00018854,2]
[374643587,1753396037269,-500.0,0.00018854,2]
[374643588,1753396037291,-323.48714756,0.00018854,2]
[374643589,1753396080091,10000.0,0.0001786,2]
[374643590,1753396093008,5000.0,0.000185,2]
[374643591,1753396108261,5000.0,0.000185,2]
[374643593,1753396124491,2413.94243053,0.000185,2]
[374643594,1753396124516,2586.05756947,0.000185,2]
[374643596,1753396139744,5000.0,0.000185,2]
[374643597,1753396156020,5000.0,0.000185,2]
[374643598,1753396156589,187.36251733,0.000222,69]
[374643599,1753396172174,1849.15923771,0.000185,2]
[374643600,1753396188281,3150.84076229,0.000185,2]
[374643601,1753396203651,800.653636,0.000185,2]
[374643610,1753396232000,-176.81086257,0.00018753,2]
[374643612,1753396232010,-176.81086255,0.00018753,2]
[374643614,1753396232019,-176.81086255,0.00018754,2]
[374643615,1753396232029,-176.81086255,0.00018754,2]
[374643616,1753396232039,-176.81086255,0.00018754,2]
[374643617,1753396232049,-577.57525778,0.000188,2]
[374643618,1753396232059,-300.0,0.00018852,2]
[374643619,1753396232070,-300.0,0.00018852,2]
[374643620,1753396232079,-300.0,0.00018852,2]
[374643621,1753396232089,-300.0,0.00018852,2]
[374643622,1753396232098,-1200.0,0.00018852,2]
[374643623,1753396232107,-500.0,0.00018853,2]
[374643624,1753396232116,-222.29317711,0.00018853,2]
[374643625,1753396232125,-500.0,0.00018853,2]
[374643626,1753396232135,-368.81041997,0.00018853,2]
[374643627,1753396232147,-131.18958003,0.00018853,2]
[374643628,1753396232156,-406.91041997,0.00018853,2]
[374643629,1753396232171,-93.08958003,0.00018853,2]
[374643630,1753396232181,-500.0,0.00018853,2]
[374643632,1753396232190,-532.07542178,0.00018853,2]
[374643635,1753396232199,-500.0,0.00018853,2]
[374643637,1753396232208,-500.0,0.00018853,2]
[374643639,1753396232217,-500.0,0.00018853,2]
[374643641,1753396232227,-500.0,0.00018853,2]
[374643643,1753396232235,-500.0,0.00018853,2]
[374643645,1753396232245,-275.79069069,0.00018853,2]
[374643647,1753396232254,-500.0,0.00018853,2]
[374643649,1753396232263,-500.0,0.00018853,2]
[374643651,1753396232274,-500.0,0.00018853,2]
[374643653,1753396232283,-500.0,0.00018853,2]
[374643662,1753396232380,-500.0,0.00018853,2]
[374643663,1753396232416,-500.0,0.00018853,2]
[374643664,1753396232426,-500.0,0.00018853,2]
[374643665,1753396232436,-500.0,0.00018853,2]
[374643666,1753396232446,-500.0,0.00018853,2]
[374643667,1753396232455,-500.0,0.00018853,2]
[374643668,1753396232464,-500.0,0.00018853,2]
[374643669,1753396232473,-500.0,0.00018853,2]
[374643670,1753396232482,-500.0,0.00018853,2]
[374643671,1753396232492,-500.0,0.00018853,2]
[374643672,1753396232500,-500.0,0.00018853,2]
[374643673,1753396232509,-500.0,0.00018853,2]
[374643674,1753396232518,-500.0,0.00018853,2]
[374643675,1753396232528,-500.0,0.00018853,2]
[374643676,1753396232537,-460.0,0.00018853,2]
[374643677,1753396232547,-460.0,0.00018853,2]
[374643678,1753396232555,-460.0,0.00018853,2]
[374643679,1753396232564,-460.0,0.00018853,2]
[374643680,1753396232574,-13395.28397074,0.00018854,2]
[374643681,1753396232583,-1200.0,0.00018854,2]
[374643682,1753396232592,-350.98658113,0.00018854,2]
[374643837,1753396237865,-460.0,0.00018853,2]
[374643838,1753396237878,-370.38887953,0.00018853,2]
[374643839,1753396237893,-460.0,0.00018853,2]
[374643842,1753396237907,-149.01341887,0.00018854,2]
[374643844,1753396237918,-460.0,0.00018854,2]
[374643846,1753396237930,-460.0,0.00018854,2]
[374643848,1753396237942,-460.0,0.00018854,2]
[374643851,1753396237956,-460.0,0.00018854,2]
[374643853,1753396237968,-460.0,0.00018854,2]
[374643855,1753396237979,-460.0,0.00018854,2]
[374643857,1753396237991,-460.0,0.00018854,2]
[374643859,1753396238003,-140.5977016,0.00018854,2]
[374643863,1753396238030,-319.4022984,0.00018854,2]
[374643865,1753396238043,-460.0,0.00018854,2]
[374643867,1753396238055,-460.0,0.00018854,2]
[374643870,1753396238067,-460.0,0.00018854,2]
[374643872,1753396238079,-460.0,0.00018854,2]
[374643874,1753396238091,-460.0,0.00018854,2]
[374643875,1753396238103,-460.0,0.00018854,2]
[374643876,1753396238116,-592.4,0.00018854,2]
[374643877,1753396238128,-460.0,0.00018854,2]
[374643878,1753396238140,-460.0,0.00018854,2]
[374643879,1753396238153,-646.06,0.00018854,2]
[374643880,1753396238165,-2304.2,0.00018854,2]
[374643881,1753396238178,-687.88,0.00018854,2]
[374643882,1753396238189,-460.0,0.00018855,2]
[374643883,1753396238201,-460.0,0.00018855,2]
[374643884,1753396238213,-460.0,0.00018855,2]
[374643885,1753396238224,-463.50101196,0.00018855,2]
[374643886,1753396238239,-460.0,0.00018855,2]
[374643887,1753396238251,-340.12009665,0.00018855,2]
[374643888,1753396238263,-460.0,0.00018855,2]
[374643889,1753396238276,-460.0,0.00018855,2]
[374643890,1753396238289,-6339.84,0.00018855,2]
[374643891,1753396238301,-2861.77,0.00018855,2]
[374643892,1753396238314,-460.0,0.00018855,2]
[374643893,1753396238326,-460.0,0.00018855,2]
[374643894,1753396238339,-828.03,0.00018855,2]
[374643895,1753396238351,-460.0,0.00018855,2]
[374643896,1753396238363,-460.0,0.00018855,2]
[374643897,1753396238375,-460.0,0.00018855,2]
[374643898,1753396238387,-3016.48,0.00018855,2]
[374643899,1753396238398,-650.58,0.00018855,2]
[374643900,1753396238410,-460.0,0.00018855,2]
[374643901,1753396238422,-528.04,0.00018855,2]
[374643902,1753396238434,-2656.51,0.00018855,2]
[374643903,1753396238446,-460.0,0.00018855,2]
[374643904,1753396238458,-2136.15,0.00018855,2]
[374643905,1753396238471,-460.0,0.00018855,2]
[374643906,1753396238482,-844.97,0.00018855,2]
[374643907,1753396238494,-670.13,0.00018855,2]
[374643908,1753396238506,-460.0,0.00018855,2]
[374643909,1753396238518,-686.89,0.00018855,2]
[374643910,1753396238530,-500.0,0.00018856,2]
[374643911,1753396238543,-500.0,0.00018856,2]
[374643912,1753396238556,-151.0,0.00018857,2]
[374643913,1753396238568,-151.0,0.00018857,2]
[374643914,1753396238579,-151.0,0.00018857,2]
[374643915,1753396238591,-151.0,0.00018857,2]
[374643916,1753396238601,-151.0,0.00018857,2]
[374643917,1753396238611,-151.0,0.00018857,2]
[374643918,1753396238620,-266.81412503,0.00018857,2]
[374643919,1753396238631,-215.0738,0.00018857,2]
[374643920,1753396238641,-151.0,0.00018857,2]
[374643921,1753396238811,-151.0,0.00018857,2]
[374643922,1753396238833,-151.0,0.00018857,2]
[374643923,1753396238845,-151.0,0.00018857,2]
[374643924,1753396238856,-151.0,0.00018857,2]
[374643925,1753396238868,-151.0,0.00018857,2]
[374643926,1753396238878,-151.0,0.00018857,2]
[374643927,1753396238887,-151.0,0.00018857,2]
[374643928,1753396238897,-151.0,0.00018857,2]
[374643929,1753396238906,-151.0,0.00018857,2]
[374643930,1753396238916,-151.0,0.00018857,2]
[374643931,1753396238925,-151.0,0.00018857,2]
[374643932,1753396238935,-151.0,0.00018857,2]
[374643933,1753396238944,-151.0,0.00018857,2]
[374643934,1753396238954,-25000.0,0.00018857,2]
[374643935,1753396238963,-151.0,0.00018857,2]
[374643936,1753396238973,-151.0,0.00018857,2]
[374643937,1753396238983,-184.17851102,0.00018857,2]
[374643938,1753396238993,-345.4,0.00018858,3]
[374643939,1753396239002,-193.17,0.00018858,3]
[374643940,1753396239012,-579.53,0.00018858,3]
[374643941,1753396239022,-798.4,0.00018858,3]
[374643942,1753396239031,-460.0,0.00018864,2]
[374643943,1753396239042,-522.14891893,0.00018864,2]
[374643944,1753396239051,-460.0,0.00018864,2]
[374643945,1753396239061,-460.0,0.00018864,2]
[374643946,1753396239070,-460.0,0.00018864,2]
[374643947,1753396239080,-460.0,0.00018864,2]
[374643948,1753396239090,-460.0,0.00018864,2]
[374643949,1753396239101,-460.0,0.00018864,2]
[374643950,1753396239111,-460.0,0.00018864,2]
[374643951,1753396239122,-460.0,0.00018864,2]
[374643952,1753396239133,-460.0,0.00018864,2]
[374643953,1753396239144,-460.0,0.00018864,2]
[374643954,1753396239154,-460.0,0.00018864,2]
[374643955,1753396239164,-273.21416359,0.00018864,2]
[374643956,1753396239174,-549.55,0.00018864,2]
[374643957,1753396239183,-460.0,0.00018864,2]
[374643958,1753396239193,-559.66850329,0.00018864,2]
[374643959,1753396239203,-460.0,0.00018864,2]
[374643960,1753396239212,-460.0,0.00018864,2]
[374643961,1753396239222,-460.0,0.00018864,2]
[374643962,1753396239231,-895.35,0.00018864,2]
[374643963,1753396239241,-2485.85,0.00018864,2]
[374643964,1753396239250,-492.88,0.00018864,2]
[374643965,1753396239260,-460.0,0.00018864,2]
[374643967,1753396239269,-460.0,0.00018864,2]
[374643968,1753396239281,-497.09481103,0.00018864,2]
[374643969,1753396239290,-1142.54,0.00018864,2]
[374643970,1753396239300,-460.0,0.00018864,2]
[374643971,1753396239311,-460.0,0.00018864,2]
[374643972,1753396239320,-460.0,0.00018864,2]
[374643973,1753396239329,-393.14000568,0.00018864,2]
[374643974,1753396239340,-460.0,0.00018864,2]
[374643975,1753396239350,-1005.52,0.00018864,2]
[374643976,1753396239361,-562.54,0.00018864,2]
[374643977,1753396239378,-460.0,0.00018864,2]
[374643978,1753396239392,-460.0,0.00018864,2]
[374643980,1753396239401,-575.64,0.00018864,2]
[374643981,1753396239415,-854.24,0.00018864,2]
[374643982,1753396239434,-460.0,0.00018864,2]
[374643984,1753396239444,-460.0,0.00018864,2]
[374643985,1753396239455,-815.42,0.00018864,2]
[374643986,1753396239465,-1295.95,0.00018864,2]
[374643987,1753396239474,-460.0,0.00018864,2]
[374643988,1753396239484,-460.0,0.00018864,2]
[374643989,1753396239494,-460.0,0.00018864,2]
[374643990,1753396239503,-460.0,0.00018864,2]
[374643991,1753396239513,-460.0,0.00018864,2]
[374643993,1753396239522,-460.0,0.00018864,2]
[374643994,1753396239531,-460.0,0.00018864,2]
[374643995,1753396239541,-460.0,0.00018864,2]
[374643996,1753396239550,-579.1,0.00018864,2]
[374643997,1753396239560,-460.0,0.00018864,2]
[374643998,1753396239569,-460.0,0.00018865,2]
[374643999,1753396239578,-460.0,0.00018865,2]
[374644000,1753396239588,-5718.45,0.00018865,2]
[374644001,1753396239598,-2001.87,0.00018865,2]
[374644003,1753396239608,-333.46847986,0.00018866,2]
[374644004,1753396239618,-460.0,0.00018866,2]
[374644005,1753396239628,-460.0,0.00018866,2]
[374644006,1753396239638,-460.0,0.00018866,2]
[374644007,1753396239649,-460.0,0.00018866,2]
[374644008,1753396239659,-460.0,0.00018866,2]
[374644009,1753396239669,-460.0,0.00018866,2]
[374644010,1753396239679,-460.0,0.00018866,2]
[374644011,1753396239689,-460.0,0.00018866,2]
[374644012,1753396239698,-460.0,0.00018866,2]
[374644013,1753396239707,-460.0,0.00018866,2]
[374644014,1753396239717,-460.0,0.00018866,2]
[374644015,1753396239727,-471.2,0.00018866,2]
[374644016,1753396239736,-401.41828748,0.00018866,2]
[374644017,1753396239746,-460.0,0.00018866,2]
[374644018,1753396239757,-175.91603106,0.00018866,2]
[374644019,1753396239766,-460.0,0.00018866,2]
[374644020,1753396239776,-460.0,0.00018866,2]
[374644021,1753396239786,-460.0,0.00018866,2]
[374644022,1753396239796,-460.0,0.00018866,2]
[374644023,1753396239806,-460.0,0.00018866,2]
[374644024,1753396239817,-535.98,0.00018866,2]
[374644025,1753396239827,-460.0,0.00018866,2]
[374644026,1753396239837,-460.0,0.00018866,2]
[374644027,1753396239846,-460.0,0.00018866,2]
[374644028,1753396239856,-272.13618868,0.00018866,2]
[374644029,1753396239865,-460.0,0.00018866,2]
[374644030,1753396239875,-460.0,0.00018866,2]
[374644031,1753396239885,-1152.76,0.00018866,2]
[374644032,1753396239895,-981.46,0.00018866,2]
[374644033,1753396239904,-460.0,0.00018866,2]
[374644034,1753396239914,-460.0,0.00018866,2]
[374644035,1753396239923,-777.86,0.00018866,2]
[374644036,1753396239933,-576.08,0.00018866,2]
[374644037,1753396239942,-157.38914395,0.00018866,2]
[374644038,1753396239952,-330.98545394,0.00018866,2]
[374644039,1753396239961,-911.93,0.00018866,2]
[374644040,1753396239970,-460.0,0.00018866,2]
[374644041,1753396239980,-1103.72,0.00018866,2]
[374644042,1753396239989,-460.0,0.00018866,2]
[374644043,1753396239998,-538.71,0.00018866,2]
[374644044,1753396240007,-460.0,0.00018866,2]
[374644045,1753396240018,-460.0,0.00018866,2]
[374644046,1753396240027,-370000.0,0.00018868,2]
[374644047,1753396240037,-302.72757545,0.000189,2]
[374644048,1753396240047,-284.88498458,0.000189,2]
[374644049,1753396240057,-3352.38775247,0.000189,2]
[374644050,1753396240066,-460.0,0.00018964,2]
[374644051,1753396240076,-460.0,0.00018964,2]
[374644052,1753396240085,-460.0,0.00018964,2]
[374644053,1753396240095,-460.0,0.00018964,2]
[374644054,1753396240105,-565.95471825,0.00018964,2]
[374644055,1753396240115,-460.0,0.00018964,2]
[374644056,1753396240124,-460.0,0.00018964,2]
[374644057,1753396240134,-460.0,0.00018964,2]
[374644058,1753396240143,-460.0,0.00018964,2]
[374644059,1753396240153,-460.0,0.00018964,2]
[374644060,1753396240162,-460.0,0.00018964,2]
[374644061,1753396240172,-460.0,0.00018964,2]
[374644062,1753396240181,-460.0,0.00018964,2]
[374644063,1753396240191,-460.0,0.00018964,2]